[Event "30th NATO Chess-ch 2019"]
[Site "Berlin"]
[Date "2019.09.17"]
[Round "3.27"]
[White "Glibert, Stephane"]
[Black "Sauer, Marko"]
[Result "1/2-1/2"]
[ECO "B42"]
[WhiteElo "1865"]
[BlackElo "2081"]
[Annotator "NA"]
[PlyCount "127"]
[EventDate "2019.09.16"]
[EventType "swiss"]
[EventCountry "GER"]
[SourceTitle "playchess.com"]
[Source "ChessBase"]
[SourceQuality "1"]
[TimeControl "40/7200:1800"]

1. e4 {[%emt 1:59:55]} c5 {[%emt 1:59:46]} 2. Nf3 {[%emt 1:59:46]} e6 {[%emt 1:59:29]} 3. d4 {[%emt 1:59:30]} cxd4 {[%emt 1:58:56]} 4. Nxd4 {[%emt 1:59:08]} Nf6 {[%emt 1:57:39]} 5. Bd3 {[%emt 1:57:39]} a6 {[%emt 1:55:47]} 6. O-O {[%emt 1:50:25]} Qc7 {[%emt 1:52:52]} 7. Be3 {[%emt 1:52:52]} b5 {[%emt 1:51:35]} 8. Nd2 {[%emt 1:41:43]} Bb7 {[%emt 1:41:43]} 9. Qe2 {[%emt 1:39:27]} d6 {[%emt 1:38:52]} 10. c3 {[%emt 1:38:52]} Nbd7 {[%emt 1:30:47]} 11. N4b3 {[%emt 1:14:36]} Nc5 {[%emt 1:26:16]} 12. Nxc5 {[%emt 1:12:19]} dxc5 {[%emt 1:26:10]} 13. a4 {[%emt 1:08:52]} c4 {[%emt 1:20:37]} 14. Bc2 {[%emt 1:06:38]} Bc5 {[%emt 1:06:38]} 15. axb5 {[%emt 1:02:31]} axb5 {[%emt 1:10:53]} 16. Bxc5 {[%emt 1:10:53]} Qxc5 {[%emt 1:08:36]} 17. e5 {[%emt 0:44:19]} Nd7 {[%emt 1:05:28]} 18. Rxa8+ {[%emt 0:34:12]} Bxa8 {[%emt 1:04:44]} 19. Re1 {[%emt 0:33:27]} O-O {[%emt 1:03:36]} 20. Be4 {[%emt 0:29:09]} Bxe4 {[%emt 0:29:09]} 21. Qxe4 {[%emt 0:28:42]} Rc8 {[%emt 0:28:42]} 22. Nf3 {[%emt 0:27:54]} h6 {[%emt 0:52:35]} 23. Ra1 {[%emt 0:23:32]} Nb6 {[%emt 0:23:32]} 24. Qd4 {[%emt 0:19:49]} Na4 {[%emt 0:42:56]} 25. Ra2 {[%emt 0:15:13]} Qc7 {[%emt 0:15:13]} 26. Qe3 {[%emt 0:14:24]} Qd7 {[%emt 0:38:28]} 27. Nd4 {[%emt 0:38:28]} Rb8 {[%emt 0:35:14]} 28. f4 {[%emt 0:10:57]} b4 {[%emt 0:33:31]} 29. Qd2 {[%emt 0:09:29]} bxc3 {[%emt 0:32:21]} 30. bxc3 {[%emt 0:09:19]} Rd8 {[%emt 0:30:43]} 31. Kf2 {[%emt 0:07:31]} Nc5 {[%emt 0:30:14]} 32. Qe2 {[%emt 0:05:51]} Nd3+ {[%emt 0:29:36]} 33. Ke3 {[%emt 0:05:12]} Qb7 {[%emt 0:05:12]} 34. Qd1 {[%emt 0:27:30]} Nc5 {[%emt 0:26:24]} 35. Qf3 {[%emt 0:03:26]} Qb1 {[%emt 0:25:49]} 36. Rd2 {[%emt 0:03:05]} Qc1 {[%emt 0:25:18]} 37. Ke2 {[%emt 0:02:37]} Nd3 {[%emt 0:24:39]} 38. Rxd3 {[%emt 0:02:33]} cxd3+ {[%emt 0:24:22]} 39. Kxd3 {[%emt 0:02:06]} Rc8 {[%emt 0:23:04]} 40. Ne2 {[%emt 0:01:32]} Qd1+ {[%emt 0:22:03]} 41. Ke3 {[%emt 0:22:03]} Rd8 {[%emt 0:19:44]} 42. Kf2 {[%emt 0:24:59]} Qc2 {[%emt 0:46:32]} 43. Qc6 {[%emt 0:17:47]} Rd2 {[%emt 0:17:47]} 44. Qc4 {[%emt 0:17:36]} g6 {[%emt 0:40:52]} 45. h3 {[%emt 0:17:15]} h5 {[%emt 0:17:15]} 46. g3 {[%emt 0:15:57]} Rd3 {[%emt 0:15:57]} 47. h4 {[%emt 0:38:00]} Rd1 {[%emt 0:36:27]} 48. Qc6 {[%emt 0:12:52]} Qd2 {[%emt 0:34:52]} 49. Qc4 {[%emt 0:10:38]} Rh1 {[%emt 0:10:38]} 50. Qe4 {[%emt 0:32:12]} Rh2+ {[%emt 0:31:44]} 51. Kf3 {[%emt 0:09:24]} Qd1 {[%emt 0:31:33]} 52. Qc4 {[%emt 0:08:53]} Qf1+ {[%emt 0:30:11]} 53. Ke3 {[%emt 0:08:44]} Qf2+ {[%emt 0:08:44]} 54. Kd2 {[%emt 0:29:52]} Qxg3 {[%emt 0:29:24]} 55. Qd4 {[%emt 0:02:57]} Qxh4 {[%emt 0:26:17]} 56. c4 {[%emt 0:02:51]} Qg4 {[%emt 0:24:09]} 57. Qe3 {[%emt 0:02:36]} h4 {[%emt 0:02:36]} 58. c5 {[%emt 0:02:29]} Qg2 {[%emt 0:02:29]} 59. Qd3 {[%emt 0:02:03]} h3 {[%emt 0:20:35]} 60. Qd8+ {[%emt 0:20:35]} Kh7 61. Qh4+ Kg7 {[%emt 0:07:32]} 62. Qf6+ Kf8 {[%emt 0:01:06]} 63. Qd8+ {[%emt 0:01:06]} Kg7 {[%emt 0:05:51]} 64. Qf6+ {[%emt 0:05:51]} 1/2-1/2

[Event "30th NATO Chess-ch 2019"]
[Site "Berlin"]
[Date "2019.09.17"]
[Round "3.28"]
[White "Crapulli, Giuseppe"]
[Black "Hof - Van Run, Rieke"]
[Result "1-0"]
[ECO "C71"]
[WhiteElo "1836"]
[BlackElo "2076"]
[Annotator "NA"]
[PlyCount "87"]
[EventDate "2019.09.16"]
[EventType "swiss"]
[EventCountry "GER"]
[SourceTitle "playchess.com"]
[Source "ChessBase"]
[SourceQuality "1"]
[TimeControl "40/7200:1800"]

1. e4 {[%emt 1:59:57]} e5 {[%emt 1:59:47]} 2. Nf3 {[%emt 1:59:47]} Nc6 {[%emt 1:59:57]} 3. Bb5 {[%emt 1:59:33]} a6 {[%emt 1:57:14]} 4. Ba4 {[%emt 1:59:48]} d6 {[%emt 1:59:48]} 5. d4 Bd7 {[%emt 1:58:04]} 6. d5 {[%emt 1:53:18]} Nce7 {[%emt 1:53:18]} 7. Bxd7+ {[%emt 1:52:30]} Qxd7 {[%emt 1:42:22]} 8. O-O {[%emt 1:51:29]} g6 {[%emt 1:51:29]} 9. c4 {[%emt 1:50:39]} Bg7 {[%emt 1:50:39]} 10. Nc3 {[%emt 1:49:52]} Nh6 {[%emt 1:28:29]} 11. Ne1 {[%emt 1:46:52]} f5 {[%emt 1:25:57]} 12. f3 {[%emt 1:25:57]} O-O {[%emt 1:23:38]} 13. Nd3 {[%emt 1:23:38]} b5 {[%emt 1:02:23]} 14. cxb5 {[%emt 1:29:45]} axb5 {[%emt 1:29:45]} 15. Bd2 {[%emt 1:28:42]} Rfb8 {[%emt 0:59:53]} 16. a3 {[%emt 1:25:36]} Nf7 {[%emt 1:25:36]} 17. Nb4 {[%emt 1:21:47]} Nd8 {[%emt 0:56:41]} 18. Bg5 {[%emt 1:18:36]} Bf8 {[%emt 1:18:36]} 19. Qd3 {[%emt 1:15:20]} c5 {[%emt 0:41:48]} 20. dxc6 {[%emt 1:14:23]} Ndxc6 {[%emt 0:41:27]} 21. Nxc6 {[%emt 1:12:59]} Qxc6 {[%emt 1:12:59]} 22. Bxe7 {[%emt 0:39:23]} Bxe7 {[%emt 0:37:01]} 23. exf5 {[%emt 0:37:01]} g5 {[%emt 0:35:47]} 24. Qd5+ {[%emt 1:08:13]} Qxd5 {[%emt 1:08:12]} 25. Nxd5 {[%emt 1:08:12]} Kf7 {[%emt 0:32:54]} 26. Rfc1 {[%emt 0:32:54]} Bd8 {[%emt 0:28:55]} 27. Rc6 {[%emt 1:04:34]} b4 {[%emt 0:26:13]} 28. Rxd6 {[%emt 0:26:13]} bxa3 {[%emt 0:24:15]} 29. Rxa3 {[%emt 1:03:18]} Rxa3 {[%emt 0:21:55]} 30. bxa3 {[%emt 1:03:17]} Ba5 {[%emt 0:20:49]} 31. Rd7+ {[%emt 0:59:02]} Kg8 {[%emt 0:59:02]} 32. Nf6+ {[%emt 0:55:58]} Kf8 {[%emt 0:55:58]} 33. Nxh7+ {[%emt 0:20:30]} Ke8 {[%emt 0:20:24]} 34. Nf6+ {[%emt 0:20:24]} Kf8 {[%emt 0:20:20]} 35. Ne4 {[%emt 0:54:20]} Rb3 {[%emt 0:19:10]} 36. Nxg5 {[%emt 0:49:54]} Rxa3 {[%emt 0:49:54]} 37. g4 {[%emt 0:48:07]} Ke8 {[%emt 0:09:22]} 38. Rd6 {[%emt 0:09:22]} Ra1+ {[%emt 0:44:40]} 39. Kg2 {[%emt 0:43:34]} Ra2+ {[%emt 0:05:45]} 40. Kh3 {[%emt 0:42:38]} Bc7 41. Re6+ {[%emt 0:42:15]} Kf8 {[%emt 0:01:35]} 42. Ne4 {[%emt 0:41:40]} Rb2 {[%emt 0:27:37]} 43. f6 {[%emt 1:09:47]} Bb6 {[%emt 1:09:47]} 44. Nd6 {[%emt 1:08:25]} 1-0

[Event "30th NATO Chess-ch 2019"]
[Site "Berlin"]
[Date "2019.09.17"]
[Round "3.29"]
[White "Oblak, Nicholas"]
[Black "Christen, Peter"]
[Result "1/2-1/2"]
[ECO "D13"]
[WhiteElo "2048"]
[BlackElo "2153"]
[Annotator "NA"]
[PlyCount "47"]
[EventDate "2019.09.16"]
[EventType "swiss"]
[EventCountry "GER"]
[SourceTitle "playchess.com"]
[Source "ChessBase"]
[SourceQuality "1"]
[TimeControl "40/7200:1800"]

1. Nf3 {[%emt 1:59:56]} Nf6 {[%emt 1:59:56]} 2. c4 {[%emt 1:59:53]} c6 {[%emt 1:59:53]} 3. g3 {[%emt 1:58:13]} d5 {[%emt 1:58:13]} 4. cxd5 {[%emt 1:58:03]} cxd5 {[%emt 1:58:03]} 5. d4 {[%emt 1:57:56]} Nc6 {[%emt 1:57:56]} 6. Bg2 {[%emt 1:57:26]} Bf5 {[%emt 1:57:26]} 7. Nc3 {[%emt 1:52:12]} e6 {[%emt 1:52:12]} 8. O-O {[%emt 1:50:59]} Bd6 {[%emt 1:50:59]} 9. Bd2 {[%emt 1:45:38]} Ne4 {[%emt 1:45:38]} 10. Nb5 {[%emt 1:30:56]} Nxd2 {[%emt 1:44:25]} 11. Nxd6+ {[%emt 1:44:25]} Qxd6 {[%emt 1:44:16]} 12. Qxd2 {[%emt 1:44:16]} O-O {[%emt 1:29:52]} 13. Nh4 {[%emt 1:26:09]} Ne7 {[%emt 1:26:09]} 14. Nxf5 {[%emt 1:40:27]} Nxf5 {[%emt 1:40:17]} 15. e3 {[%emt 1:22:33]} Qd7 {[%emt 1:22:33]} 16. Rac1 {[%emt 1:21:10]} Rac8 {[%emt 1:21:10]} 17. Rxc8 Rxc8 18. Rc1 {[%emt 1:35:41]} Nd6 {[%emt 1:34:09]} 19. b3 {[%emt 1:34:09]} g6 {[%emt 1:14:23]} 20. Bf1 {[%emt 1:07:38]} Rc7 {[%emt 1:07:38]} 21. Bd3 {[%emt 1:06:08]} Qc8 {[%emt 1:06:08]} 22. Rxc7 {[%emt 1:19:32]} Qxc7 {[%emt 1:19:21]} 23. Qc2 {[%emt 0:51:57]} Qd7 {[%emt 1:10:29]} 24. Kg2 1/2-1/2

[Event "30th NATO Chess-ch 2019"]
[Site "Berlin"]
[Date "2019.09.17"]
[Round "3.30"]
[White "Nielsen, Jan Mose"]
[Black "Slaidins, Janis"]
[Result "1/2-1/2"]
[ECO "C41"]
[WhiteElo "2044"]
[BlackElo "1834"]
[Annotator "NA"]
[PlyCount "114"]
[EventDate "2019.09.16"]
[EventType "swiss"]
[EventCountry "GER"]
[SourceTitle "playchess.com"]
[Source "ChessBase"]
[SourceQuality "1"]
[TimeControl "40/7200:1800"]

1. e4 {[%emt 1:59:56]} e5 {[%emt 1:59:52]} 2. Bc4 {[%emt 1:59:52]} d6 {[%emt 1:59:44]} 3. Nf3 {[%emt 1:59:44]} Be7 {[%emt 1:59:30]} 4. d4 {[%emt 1:55:02]} exd4 {[%emt 1:55:02]} 5. c3 {[%emt 1:59:09]} Nf6 {[%emt 1:54:04]} 6. cxd4 {[%emt 1:57:55]} Nxe4 {[%emt 1:54:25]} 7. Qb3 {[%emt 1:36:55]} O-O {[%emt 1:36:55]} 8. Bd5 {[%emt 1:54:02]} Nf6 {[%emt 1:36:31]} 9. Bxb7 {[%emt 1:36:19]} Bxb7 {[%emt 1:36:19]} 10. Qxb7 {[%emt 1:36:14]} Nbd7 {[%emt 1:52:33]} 11. Nc3 {[%emt 1:36:07]} c5 {[%emt 1:51:05]} 12. O-O {[%emt 1:32:00]} Qb6 {[%emt 1:47:32]} 13. Qxb6 {[%emt 1:31:17]} axb6 {[%emt 1:47:23]} 14. Re1 {[%emt 1:31:15]} Rfe8 {[%emt 1:44:50]} 15. Nb5 {[%emt 1:31:07]} Nd5 {[%emt 1:31:07]} 16. a3 {[%emt 1:27:19]} Kf8 {[%emt 1:40:38]} 17. Bd2 {[%emt 1:26:45]} Rac8 {[%emt 1:26:45]} 18. Kf1 {[%emt 1:16:15]} Rc6 {[%emt 1:16:15]} 19. Ng5 {[%emt 1:12:43]} h6 {[%emt 1:29:18]} 20. Ne4 {[%emt 1:09:20]} N7f6 {[%emt 1:21:40]} 21. Bc3 {[%emt 0:55:32]} Nxe4 22. Rxe4 {[%emt 0:53:06]} Bf6 {[%emt 1:07:49]} 23. Rxe8+ {[%emt 0:36:38]} Kxe8 {[%emt 1:04:17]} 24. dxc5 {[%emt 1:04:17]} Nxc3 {[%emt 0:56:19]} 25. bxc3 {[%emt 0:32:01]} dxc5 {[%emt 0:52:56]} 26. Re1+ {[%emt 0:28:34]} Kd7 {[%emt 0:48:15]} 27. Rd1+ {[%emt 0:25:44]} Ke7 {[%emt 0:43:36]} 28. c4 {[%emt 0:43:36]} Rc8 {[%emt 0:39:30]} 29. Ke2 {[%emt 0:21:51]} Ra8 {[%emt 0:37:11]} 30. Rd3 {[%emt 0:20:15]} Ra4 {[%emt 0:20:15]} 31. Nd6 {[%emt 0:16:53]} Ke6 {[%emt 0:30:18]} 32. Nc8 {[%emt 0:30:18]} Rxc4 33. Nxb6 {[%emt 0:15:11]} Rc2+ {[%emt 0:28:13]} 34. Rd2 {[%emt 0:14:29]} Rc1 {[%emt 0:23:32]} 35. Nd5 {[%emt 0:10:59]} Bd4 {[%emt 0:20:36]} 36. Nf4+ {[%emt 0:10:48]} Kd6 {[%emt 0:10:48]} 37. Ra2 {[%emt 0:07:05]} Kc6 {[%emt 0:19:46]} 38. Nd3 {[%emt 0:03:31]} Rh1 39. h3 {[%emt 0:02:46]} Kb5 {[%emt 0:02:46]} 40. a4+ {[%emt 0:02:05]} Ka5 {[%emt 0:13:54]} 41. Rc2 {[%emt 0:01:49]} Kb6 {[%emt 0:11:47]} 42. a5+ {[%emt 0:23:44]} Kb5 {[%emt 0:40:43]} 43. Ra2 {[%emt 0:23:38]} Ra1 {[%emt 0:40:29]} 44. Rxa1 {[%emt 0:23:23]} Bxa1 {[%emt 0:23:23]} 45. a6 {[%emt 0:23:13]} Kxa6 46. Nxc5+ {[%emt 0:39:06]} Kb6 {[%emt 0:23:08]} 47. Nb3 {[%emt 0:18:53]} Bb2 {[%emt 0:18:53]} 48. Kd3 {[%emt 0:18:41]} Kc6 {[%emt 0:37:10]} 49. Ke4 {[%emt 0:37:10]} Bc3 {[%emt 0:36:04]} 50. Nc1 {[%emt 0:18:17]} Kd6 {[%emt 0:18:17]} 51. Ne2 {[%emt 0:17:29]} Bb2 {[%emt 0:35:10]} 52. f4 {[%emt 0:17:07]} Ke6 {[%emt 0:34:21]} 53. g4 {[%emt 0:17:05]} g6 {[%emt 0:17:05]} 54. Ng3 {[%emt 0:15:48]} Bc1 {[%emt 0:31:17]} 55. Ne2 {[%emt 0:13:33]} f5+ {[%emt 0:29:15]} 56. Kf3 {[%emt 0:13:18]} Bb2 57. Nd4+ {--- Ke4} Kf6 1/2-1/2

[Event "30th NATO Chess-ch 2019"]
[Site "Berlin"]
[Date "2019.09.18"]
[Round "4.21"]
[White "Crapulli, Giuseppe"]
[Black "Mestek, Igor"]
[Result "1/2-1/2"]
[ECO "B28"]
[WhiteElo "1836"]
[BlackElo "2087"]
[Annotator "NA RC"]
[PlyCount "93"]
[EventDate "2019.09.16"]
[EventType "swiss"]
[EventCountry "GER"]
[SourceTitle "playchess.com"]
[Source "ChessBase"]
[SourceQuality "1"]
[TimeControl "40/7200:1800"]

1. e4 {[%emt 1:59:58]} c5 {[%emt 1:59:58]} 2. Nf3 {[%emt 1:59:53]} a6 {[%emt 1:59:25]} 3. c4 {[%emt 1:59:15]} Nc6 {[%emt 1:59:15]} 4. d4 {[%emt 1:58:43]} cxd4 {[%emt 1:59:01]} 5. Nxd4 {[%emt 1:59:01]} e6 {[%emt 1:59:01]} 6. Nxc6 {[%emt 1:55:36] B28: Sicilian: 2 Nf3 a6 (O'Kelly Variation)} (6. Nc3 Bb4 7. Be3 Nf6 8. Bd3 Qc7 9. Rc1 b6 10. O-O Nxd4 11. Bxd4 Bc5 12. Be2 Bb7 13. Qd3 Bxd4 14. Qxd4 Qc5 15. Qd3 Bc6 16. a3 {1-0 (42) Dominguez Perez,L (2719)-Polgar,J (2680) Moscow 2009}) 6... bxc6 {[%emt 1:52:29]} 7. Nc3 {[%emt 1:55:26]} e5 {[%emt 1:55:26]} 8. Be2 {[%emt 1:54:50]} Nf6 {[%emt 1:45:57]} 9. O-O {[%emt 1:54:10]} Bc5 {[%emt 1:39:58]} 10. Qd3 {[%emt 1:51:13]} O-O {[%emt 1:35:55]} 11. Be3 {[%emt 1:50:42]} Qe7 {[%emt 1:35:04]} 12. Bxc5 $146 {[%emt 1:49:35]} ({Predecessor:} 12. Rad1 Bxe3 13. Qxe3 d6 14. Rd2 c5 15. Rfd1 Ne8 {1-0 (39) Popova,T-Zatulovskaya,T Moscow 1974}) 12... Qxc5 {[%emt 1:34:54]} 13. Rfd1 {[%emt 1:34:54]} Rd8 {[%emt 1:29:34]} 14. Qd6 {[%emt 1:43:32]} Qxd6 {[%emt 1:29:04]} 15. Rxd6 {[%emt 1:43:30]} Kf8 {[%emt 1:27:48]} 16. c5 {[%emt 1:39:06]} Rb8 {[%emt 1:24:29]} 17. b3 {[%emt 1:37:12]} Ne8 {[%emt 1:20:36]} 18. Rd2 {[%emt 1:20:36]} Nc7 {[%emt 1:36:25]} 19. Bc4 {[%emt 1:32:25]} Ke7 {[%emt 1:32:25]} 20. Rad1 {[%emt 1:30:05]} Nb5 {[%emt 1:04:14]} 21. Bxb5 {[%emt 1:29:19]} axb5 {[%emt 1:29:19]} 22. b4 {[%emt 1:28:52]} Ra8 {[%emt 1:28:52]} 23. Rd6 {[%emt 1:27:39]} Re8 {[%emt 0:58:13]} 24. Kf1 {[%emt 1:27:01]} Ra3 {[%emt 0:54:07]} 25. R1d3 {[%emt 1:26:26]} Ra6 {[%emt 0:49:31]} 26. Ke1 {[%emt 0:49:31]} Rf8 {[%emt 1:25:51]} 27. g4 {[%emt 1:20:24]} h6 {[%emt 1:20:24]} 28. Kd2 {[%emt 1:19:56]} Rh8 {[%emt 1:19:56]} 29. Kc2 {[%emt 1:18:27]} Ra7 {[%emt 0:44:42]} 30. Kb3 {[%emt 1:17:53]} Rd8 {[%emt 0:44:12]} 31. Ne2 {[%emt 1:16:17]} Rc7 {[%emt 0:37:55]} 32. Ng3 {[%emt 0:37:55]} g6 {[%emt 0:37:27]} 33. h4 {[%emt 1:10:44]} Kf8 {[%emt 0:32:11]} 34. h5 {[%emt 1:08:12]} Kg7 {[%emt 1:08:12]} 35. Rf3 {[%emt 1:07:08]} Re8 {[%emt 0:30:09]} 36. Rdf6 $2 {[%emt 0:48:40]} (36. hxg6 $18 fxg6 37. Ne2) 36... d6 {[%emt 0:48:40]} 37. Rxd6 {[%emt 0:44:46]} Bxg4 {[%emt 0:27:38]} 38. Rfd3 $15 {[%emt 0:43:32]} Ree7 {[%emt 0:18:59]} 39. f3 {[%emt 0:18:59]} Be6+ {[%emt 0:37:29]} 40. Kb2 {[%emt 0:37:20]} Bc4 {[%emt 0:18:17]} 41. Rd2 {[%emt 0:18:17]} Ra7 {[%emt 0:16:12]} 42. a3 {[%emt 0:36:12]} Rac7 {[%emt 0:11:06]} 43. Rg2 {[%emt 0:33:34]} Kh7 {[%emt 0:10:21]} 44. Rgd2 {[%emt 0:33:05]} Kg7 {[%emt 0:33:05]} 45. Rg2 {[%emt 0:07:29]} Kh7 {[%emt 0:06:33]} 46. Rgd2 {[%emt 0:32:45]} Kg7 {[%emt 0:04:27]} 47. Rg2 {[%emt 0:32:34]} 1/2-1/2

[Event "30th NATO Chess-ch 2019"]
[Site "Berlin"]
[Date "2019.09.18"]
[Round "4.24"]
[White "Tocco, Paolo"]
[Black "Hater, David"]
[Result "1-0"]
[ECO "D00"]
[WhiteElo "2089"]
[BlackElo "1973"]
[Annotator "NA RC"]
[PlyCount "29"]
[EventDate "2019.09.16"]
[EventType "swiss"]
[EventCountry "GER"]
[SourceTitle "playchess.com"]
[Source "ChessBase"]
[SourceQuality "1"]
[TimeControl "40/7200:1800"]

1. d4 {[%emt 1:59:50]} Nf6 {[%emt 1:59:50]} 2. Nc3 {[%emt 1:59:46]} d5 {[%emt 1:59:46]} 3. Bf4 {[%emt 1:59:44]} g6 {[%emt 1:59:00]} 4. e3 {[%emt 1:58:44]} Bg7 {[%emt 1:58:16]} 5. h4 {[%emt 1:58:35]} O-O {[%emt 1:52:27]} 6. h5 {[%emt 1:58:31]} Nxh5 {[%emt 1:58:31]} 7. Rxh5 {[%emt 1:58:26]} gxh5 {[%emt 1:49:52]} 8. Qxh5 {[%emt 1:49:52]} e6 {[%emt 1:44:18]} 9. Bd3 {[%emt 1:54:16]} f5 {[%emt 1:54:16]} 10. Nf3 {[%emt 1:43:49]} Bd7 {[%emt 1:53:45]} (10... Nd7 $16) 11. O-O-O {[%emt 1:53:13]} Be8 {[%emt 1:35:38]} 12. Qh2 {[%emt 1:53:05]} Na6 {[%emt 1:53:05]} 13. Ng5 {[%emt 1:50:23]} Rf6 {[%emt 1:29:43]} 14. Qxh7+ {[%emt 1:49:04]} Kf8 {[%emt 1:29:37]} 15. Be5 $18 {[%emt 1:48:54]} ({Don't take} 15. Bxa6 $6 bxa6 16. Be5 Qe7 $18) 1-0

[Event "30th NATO Chess-ch 2019"]
[Site "Berlin"]
[Date "2019.09.18"]
[Round "4.26"]
[White "Kraft, Chip"]
[Black "Wagenaar, Harm Theo"]
[Result "0-1"]
[ECO "A36"]
[WhiteElo "2050"]
[BlackElo "1879"]
[Annotator "NA RC"]
[PlyCount "132"]
[EventDate "2019.09.16"]
[EventType "swiss"]
[EventCountry "GER"]
[SourceTitle "playchess.com"]
[Source "ChessBase"]
[SourceQuality "1"]
[TimeControl "40/7200:1800"]

1. c4 {[%emt 1:59:54]} c5 {[%emt 1:59:38]} 2. Nc3 {[%emt 1:59:47]} Nc6 {[%emt 1:59:14]} 3. g3 {[%emt 1:57:45]} g6 {[%emt 1:58:24]} 4. Bg2 {[%emt 1:56:50]} Bg7 {[%emt 1:58:15]} 5. e4 {[%emt 1:56:16]} e5 {[%emt 1:57:53]} 6. Nge2 {[%emt 1:56:01] A36: Symmetrical English vs ...g6: 4 Bg2 Bg7} Nge7 {[%emt 1:57:42]} 7. O-O {[%emt 1:55:42]} O-O {[%emt 1:57:32]} (7... d6 8. d3 O-O 9. a3 Rb8 10. Rb1 a6 11. b4 cxb4 12. axb4 b5 13. cxb5 axb5 14. Be3 Be6 15. d4 d5 16. dxe5 dxe4 17. Nxe4 Nxe5 {1-0 (31) Muzychuk,A (2569)-Mammadzada,G (2422) St Petersburg 2018}) 8. Rb1 {[%emt 1:55:05]} Rb8 {[%emt 1:56:24]} 9. a3 {[%emt 1:53:59]} a5 {[%emt 1:53:30]} 10. d3 {[%emt 1:51:15]} d6 {[%emt 1:53:17]} 11. Nb5 {[%emt 1:49:22]} Be6 {[%emt 1:49:22]} 12. Bd2 {[%emt 1:46:38]} Qd7 {[%emt 1:46:38]} 13. Qe1 $146 {[%emt 1:41:00]} ({Predecessor:} 13. Nec3 b6 14. Nd5 Nd4 15. Nxd4 cxd4 16. Nxe7+ Qxe7 17. b4 Qc7 18. bxa5 bxa5 {1-0 (46) Mueller,M (2083)-Krause,C (1953) Bayern 2015}) 13... b6 {[%emt 1:39:37]} 14. f4 {[%emt 1:33:23]} f5 {[%emt 1:34:17]} 15. Nec3 {[%emt 1:25:10]} Nd4 {[%emt 1:25:10]} 16. Nxd4 {[%emt 1:22:08]} exd4 {[%emt 1:18:56]} 17. Nd5 {[%emt 1:17:18]} Bxd5 {[%emt 1:17:18]} 18. cxd5 {[%emt 1:16:41]} Rfe8 {[%emt 1:07:34]} 19. Qf2 {[%emt 1:07:34]} Rbd8 {[%emt 1:14:52]} 20. Qf3 {[%emt 0:52:42]} Qc7 {[%emt 0:47:51]} 21. g4 {[%emt 1:10:04]} Rf8 {[%emt 0:47:25]} 22. b3 {[%emt 1:05:20]} Kh8 {[%emt 0:44:36] [#]} 23. h4 {[%emt 0:44:36]} (23. exf5 $1 $16 gxf5 24. g5) 23... Qd7 {[%emt 1:02:58]} 24. Bh3 {[%emt 1:02:16]} Qe8 {[%emt 0:43:28]} (24... Qb7 $16 {might work better.}) 25. Kg2 {[%emt 0:59:46]} (25. exf5 $16 gxf5 26. g5) 25... Qf7 {[%emt 0:42:52]} 26. Rh1 {[%emt 0:53:12]} h5 {[%emt 0:36:25]} 27. gxf5 {[%emt 0:50:31]} gxf5 {[%emt 0:50:31]} 28. Kh2 {[%emt 8:51:08]} Bh6 {[%emt 0:47:43]} 29. Rbf1 {[%emt 0:46:09]} Rg8 $11 {[%emt 0:46:09]} 30. Be1 {[%emt 0:33:40]} Rg7 {[%emt 0:38:23]} 31. Bg3 {[%emt 0:34:58]} Rf8 {[%emt 0:24:46]} 32. Rhg1 {[%emt 0:33:33]} Rd8 {[%emt 0:33:33]} 33. Qe2 {[%emt 0:31:54]} Rdg8 {[%emt 0:20:53]} 34. Qf3 {[%emt 0:30:34]} Rd8 {[%emt 0:30:34]} 35. Rf2 {[%emt 0:26:48]} Rdg8 {[%emt 0:14:53]} 36. Rff1 {[%emt 0:17:30]} Rd8 {[%emt 0:14:32]} 37. Kh1 {[%emt 0:14:32]} Rf8 {[%emt 0:17:03]} 38. Bh2 {[%emt 0:15:59]} Rfg8 {[%emt 0:15:59]} 39. Rxg7 {[%emt 0:15:51]} Rxg7 {[%emt 0:06:22]} 40. Bg3 {[%emt 0:09:56]} Kh7 {[%emt 0:03:16]} 41. Kh2 {[%emt 0:09:41]} Kh8 {[%emt 0:09:41]} 42. Rb1 {[%emt 0:01:03]} Rg8 {[%emt 0:01:03]} 43. b4 {[%emt 0:29:08]} cxb4 {[%emt 0:23:19]} 44. axb4 {[%emt 0:28:48]} a4 {[%emt 0:23:12]} 45. Rc1 {[%emt 0:20:56]} a3 {[%emt 0:21:15]} 46. Ra1 {[%emt 0:18:50]} Ra8 {[%emt 0:20:55]} 47. Bf1 {[%emt 0:17:36]} Bg7 {[%emt 0:18:16]} 48. Ra2 {[%emt 0:17:02]} Ra7 {[%emt 0:10:40]} 49. Be2 {[%emt 0:10:40]} Kg8 {[%emt 0:16:28]} 50. Be1 {[%emt 0:15:19]} Bh6 {[%emt 0:06:15]} 51. Bg3 {[%emt 0:13:47]} Bg7 {[%emt 0:05:59]} 52. Bd1 {[%emt 0:12:32]} Kf8 {[%emt 0:04:21]} 53. Bb3 {[%emt 0:11:29]} Qg6 {[%emt 0:03:36]} 54. e5 {[%emt 0:03:36]} b5 {[%emt 0:02:27]} 55. Qf2 {[%emt 0:02:27]} dxe5 {[%emt 0:06:09]} 56. fxe5 {[%emt 0:06:02]} Qg4 {[%emt 0:02:07]} 57. d6 {[%emt 0:05:19]} Nc6 {[%emt 0:01:55]} 58. e6 {[%emt 0:04:06]} Be5 {[%emt 0:01:46]} 59. Bxe5 {[%emt 0:01:44]} Nxe5 {[%emt 0:01:44]} 60. Bd5 {[%emt 0:02:32]} Nxd3 {[%emt 0:01:33]} 61. Qg3 {[%emt 0:01:00]} Nxb4 {[%emt 0:01:00]} 62. Qxg4 {[%emt 0:00:46]} fxg4 {[%emt 0:00:46]} 63. e7+ {[%emt 0:00:37]} Ke8 {[%emt 0:00:37]} 64. Rf2 {[%emt 0:00:34]} Rxe7 {[%emt 0:00:36]} 65. dxe7 {[%emt 0:00:31]} Nxd5 {[%emt 0:00:32]} 66. Rd2 {[%emt 0:00:05]} b4 {[%emt 0:00:24]} 0-1